[Event "Titled Tuesday Blitz March 22 Late 2022"]
[White "Elissalt Cardenas, Hector"]
[Black "Perez Torres, Nabi Isaias"]
[WhiteFideId "3500632"]
[BlackFideId "5120373"]
[WhiteElo "2159"]
[BlackElo "1755"]
[Result "1-0"]
[Round "10"]
[TimeControl "180+1"]
[Date "2022.03.22"]
[WhiteClock "0:00:03"]
[BlackClock "0:00:06"]

1. d4 {[%clk 0:03:00]}  Nf6 {[%clk 0:02:59]} 2. Nf3 {[%clk 0:03:01]}  g6 {[%clk 0:02:59]} 3. c4 {[%clk 0:03:01]}  Bg7 {[%clk 0:02:59]} 4. Nc3 {[%clk 0:03:01]}  d6 {[%clk 0:03:00]} 5. Bg5 {[%clk 0:03:01]}  h6 {[%clk 0:02:57]} 6. Bxf6 {[%clk 0:02:39]}  exf6 {[%clk 0:02:56]} 7. e3 {[%clk 0:02:39]}  O-O {[%clk 0:02:54]} 8. Bd3 {[%clk 0:02:30]}  f5 {[%clk 0:02:46]} 9. O-O {[%clk 0:02:25]}  Nd7 {[%clk 0:02:38]} 10. Rc1 {[%clk 0:02:08]}  Re8 {[%clk 0:02:29]} 11. b4 {[%clk 0:02:06]}  c5 {[%clk 0:02:11]} 12. bxc5 {[%clk 0:01:52]}  dxc5 {[%clk 0:02:10]} 13. Nb5 {[%clk 0:01:53]}  Qb6 {[%clk 0:01:59]} 14. Rb1 {[%clk 0:01:46]}  a6 {[%clk 0:01:51]} 15. Nc3 {[%clk 0:01:37]}  Qd6 {[%clk 0:01:51]} 16. Bc2 {[%clk 0:01:19]}  f4 {[%clk 0:01:28]} 17. Qd2 {[%clk 0:01:04]}  Nb6 {[%clk 0:01:11]} 18. Ne4 {[%clk 0:00:54]}  Qc7 {[%clk 0:00:59]} 19. dxc5 {[%clk 0:00:38]}  Nxc4 {[%clk 0:00:50]} 20. Qb4 {[%clk 0:00:38]}  Ne5 {[%clk 0:00:28]} 21. Nxe5 {[%clk 0:00:37]}  Bxe5 {[%clk 0:00:25]} 22. exf4 {[%clk 0:00:30]}  Bxf4 {[%clk 0:00:24]} 23. Nf6+ {[%clk 0:00:29]}  Kf8 {[%clk 0:00:23]} 24. Nxe8 {[%clk 0:00:26]}  Kxe8 {[%clk 0:00:23]} 25. Rfe1+ {[%clk 0:00:23]}  Kf8 {[%clk 0:00:24]} 26. c6+ {[%clk 0:00:23]}  Bd6 {[%clk 0:00:24]} 27. cxb7 {[%clk 0:00:21]}  Bxb4 {[%clk 0:00:20]} 28. bxa8=Q {[%clk 0:00:20]}  Bxe1 {[%clk 0:00:20]} 29. Rxe1 {[%clk 0:00:13]}  Qxc2 {[%clk 0:00:21]} 30. h3 {[%clk 0:00:11]}  Kg7 {[%clk 0:00:21]} 31. Qb8 {[%clk 0:00:11]}  Be6 {[%clk 0:00:21]} 32. Qe5+ {[%clk 0:00:10]}  Kg8 {[%clk 0:00:21]} 33. a3 {[%clk 0:00:10]}  Qa2 {[%clk 0:00:20]} 34. Qd6 {[%clk 0:00:10]}  a5 {[%clk 0:00:19]} 35. Rc1 {[%clk 0:00:09]}  Kh7 {[%clk 0:00:18]} 36. Qe5 {[%clk 0:00:08]}  Bc4 {[%clk 0:00:16]} 37. Rd1 {[%clk 0:00:07]}  g5 {[%clk 0:00:07]} 38. Rd8 {[%clk 0:00:06]}  Qe2 {[%clk 0:00:06]} 39. Qh8+ {[%clk 0:00:03]} 1-0


[Site "https://www.chess.com"]

[Event "Titled Tuesday Blitz March 22 Late 2022"]
[White "Fedoseev, Vladimir"]
[Black "Martinez Alcantara, Jose Eduardo"]
[WhiteFideId "24130737"]
[BlackFideId "3805662"]
[WhiteElo "2726"]
[BlackElo "2690"]
[Result "1-0"]
[Round "10"]
[TimeControl "180+1"]
[Date "2022.03.22"]
[WhiteClock "0:00:05"]
[BlackClock "0:00:02"]

1. e4 {[%clk 0:03:00]}  c5 {[%clk 0:03:00]} 2. Nf3 {[%clk 0:03:00]}  d6 {[%clk 0:03:01]} 3. d4 {[%clk 0:03:00]}  cxd4 {[%clk 0:03:02]} 4. Nxd4 {[%clk 0:03:00]}  Nf6 {[%clk 0:03:03]} 5. Nc3 {[%clk 0:03:00]}  Nc6 {[%clk 0:03:03]} 6. Bg5 {[%clk 0:02:58]}  e6 {[%clk 0:03:04]} 7. Qd2 {[%clk 0:02:59]}  a6 {[%clk 0:03:05]} 8. O-O-O {[%clk 0:02:58]}  Bd7 {[%clk 0:03:05]} 9. f3 {[%clk 0:02:56]}  Nxd4 {[%clk 0:03:05]} 10. Qxd4 {[%clk 0:02:56]}  Be7 {[%clk 0:03:06]} 11. h4 {[%clk 0:02:54]}  Qc7 {[%clk 0:03:02]} 12. Kb1 {[%clk 0:02:52]}  b5 {[%clk 0:03:00]} 13. Be2 {[%clk 0:02:38]}  Rb8 {[%clk 0:02:58]} 14. a3 {[%clk 0:02:28]}  a5 {[%clk 0:02:58]} 15. Bxf6 {[%clk 0:02:05]}  gxf6 {[%clk 0:02:52]} 16. Na2 {[%clk 0:02:05]}  O-O {[%clk 0:02:28]} 17. c3 {[%clk 0:01:51]}  Rfc8 {[%clk 0:02:21]} 18. g4 {[%clk 0:01:48]}  Qc5 {[%clk 0:01:38]} 19. Qd2 {[%clk 0:01:27]}  Kh8 {[%clk 0:01:19]} 20. g5 {[%clk 0:01:23]}  Rg8 {[%clk 0:01:16]} 21. f4 {[%clk 0:00:59]}  Bc6 {[%clk 0:01:12]} 22. Bd3 {[%clk 0:00:57]}  d5 {[%clk 0:00:58]} 23. Qe2 {[%clk 0:00:50]}  Rg7 {[%clk 0:00:42]} 24. e5 {[%clk 0:00:42]}  f5 {[%clk 0:00:40]} 25. Rhe1 {[%clk 0:00:38]}  Qb6 {[%clk 0:00:41]} 26. b4 {[%clk 0:00:32]}  Ra8 {[%clk 0:00:35]} 27. Qe3 {[%clk 0:00:26]}  Qa6 {[%clk 0:00:32]} 28. Re2 {[%clk 0:00:22]}  Rgg8 {[%clk 0:00:33]} 29. Rb2 {[%clk 0:00:20]}  Rgc8 {[%clk 0:00:31]} 30. Kc2 {[%clk 0:00:20]}  Be8 {[%clk 0:00:31]} 31. Kd2 {[%clk 0:00:20]}  Bd8 {[%clk 0:00:31]} 32. Qf3 {[%clk 0:00:16]}  Qa7 {[%clk 0:00:29]} 33. Ke2 {[%clk 0:00:15]}  d4 {[%clk 0:00:28]} 34. cxd4 {[%clk 0:00:14]}  Bc6 {[%clk 0:00:26]} 35. Qe3 {[%clk 0:00:13]}  Bd5 {[%clk 0:00:24]} 36. Bxb5 {[%clk 0:00:13]}  Rab8 {[%clk 0:00:22]} 37. a4 {[%clk 0:00:13]}  Qa8 {[%clk 0:00:19]} 38. Nc3 {[%clk 0:00:12]}  Bc4+ {[%clk 0:00:13]} 39. Kf2 {[%clk 0:00:11]}  axb4 {[%clk 0:00:12]} 40. Rxb4 {[%clk 0:00:11]}  Bd5 {[%clk 0:00:05]} 41. Nxd5 {[%clk 0:00:10]}  Qxd5 {[%clk 0:00:06]} 42. Rb2 {[%clk 0:00:10]}  Ba5 {[%clk 0:00:05]} 43. Qf3 {[%clk 0:00:09]}  Qd8 {[%clk 0:00:05]} 44. d5 {[%clk 0:00:09]}  Rc3 {[%clk 0:00:06]} 45. Rd3 {[%clk 0:00:08]}  Qb6+ {[%clk 0:00:06]} 46. Kg2 {[%clk 0:00:08]}  Rbc8 {[%clk 0:00:07]} 47. Rbd2 {[%clk 0:00:08]}  Rc1 {[%clk 0:00:07]} 48. Rd1 {[%clk 0:00:07]}  R1c2+ {[%clk 0:00:06]} 49. Kh3 {[%clk 0:00:07]}  Qc5 {[%clk 0:00:06]} 50. dxe6 {[%clk 0:00:07]}  fxe6 {[%clk 0:00:06]} 51. Qg3 {[%clk 0:00:05]}  Rg8 {[%clk 0:00:05]} 52. h5 {[%clk 0:00:05]}  Bb6 {[%clk 0:00:04]} 53. g6 {[%clk 0:00:05]}  Qf8 {[%clk 0:00:03]} 54. Rd7 {[%clk 0:00:05]}  Qh6 {[%clk 0:00:03]} 55. Rxh7+ {[%clk 0:00:04]}  Qxh7 {[%clk 0:00:03]} 56. gxh7 {[%clk 0:00:05]}  Rxg3+ {[%clk 0:00:04]} 57. Kxg3 {[%clk 0:00:06]}  Rc3+ {[%clk 0:00:04]} 58. Kg2 {[%clk 0:00:05]}  Be3 {[%clk 0:00:03]} 59. Rd8+ {[%clk 0:00:05]}  Kxh7 {[%clk 0:00:03]} 60. Rd7+ {[%clk 0:00:04]}  Kh6 {[%clk 0:00:04]} 61. Re7 {[%clk 0:00:04]}  Kxh5 {[%clk 0:00:04]} 62. Rxe6 {[%clk 0:00:04]}  Kg4 {[%clk 0:00:05]} 63. Rg6+ {[%clk 0:00:04]}  Kxf4 {[%clk 0:00:06]} 64. e6 {[%clk 0:00:05]}  Rc2+ {[%clk 0:00:06]} 65. Kh3 {[%clk 0:00:05]}  Bc5 {[%clk 0:00:03]} 66. Rg7 {[%clk 0:00:05]}  Rc3+ {[%clk 0:00:04]} 67. Kh4 {[%clk 0:00:05]}  Re3 {[%clk 0:00:01]} 68. Bd7 {[%clk 0:00:05]}  Bd4 {[%clk 0:00:01]} 69. Rf7 {[%clk 0:00:04]}  Bc5 {[%clk 0:00:01]} 70. Kh5 {[%clk 0:00:04]}  Rh3+ {[%clk 0:00:01]} 71. Kg6 {[%clk 0:00:04]}  Rg3+ {[%clk 0:00:02]} 72. Kf6 {[%clk 0:00:05]}  Re3 {[%clk 0:00:01]} 73. e7 {[%clk 0:00:04]}  Bd6 {[%clk 0:00:02]} 74. e8=Q {[%clk 0:00:04]}  Rxe8 {[%clk 0:00:01]} 75. Bxe8 {[%clk 0:00:04]}  Ke4 {[%clk 0:00:02]} 76. Ke6 {[%clk 0:00:05]} 1-0


[Site "https://www.chess.com"]

[Event "Titled Tuesday Blitz March 22 Late 2022"]
[White "Gabrielian, Artur"]
[Black "Deac, Bogdan-Daniel"]
[WhiteFideId "4131002"]
[BlackFideId "1226380"]
[WhiteElo "2440"]
[BlackElo "2646"]
[Result "0-1"]
[Round "10"]
[TimeControl "180+1"]
[Date "2022.03.22"]
[WhiteClock "0:00:03"]
[BlackClock "0:00:03"]

1. e4 {[%clk 0:03:00]}  c5 {[%clk 0:03:00]} 2. Nf3 {[%clk 0:03:00]}  Nc6 {[%clk 0:03:00]} 3. Bb5 {[%clk 0:03:00]}  g6 {[%clk 0:03:00]} 4. O-O {[%clk 0:03:00]}  Bg7 {[%clk 0:03:01]} 5. Re1 {[%clk 0:03:00]}  Nf6 {[%clk 0:03:01]} 6. e5 {[%clk 0:03:01]}  Nd5 {[%clk 0:03:01]} 7. Nc3 {[%clk 0:03:00]}  Nc7 {[%clk 0:03:01]} 8. Bxc6 {[%clk 0:03:00]}  dxc6 {[%clk 0:03:02]} 9. Ne4 {[%clk 0:03:00]}  Ne6 {[%clk 0:03:02]} 10. d3 {[%clk 0:03:00]}  h6 {[%clk 0:03:01]} 11. a4 {[%clk 0:02:29]}  a5 {[%clk 0:02:58]} 12. b3 {[%clk 0:02:26]}  b6 {[%clk 0:02:55]} 13. Bb2 {[%clk 0:02:25]}  O-O {[%clk 0:02:54]} 14. Qd2 {[%clk 0:02:02]}  Nd4 {[%clk 0:02:45]} 15. Bxd4 {[%clk 0:01:58]}  cxd4 {[%clk 0:02:46]} 16. Nh4 {[%clk 0:01:57]}  g5 {[%clk 0:02:37]} 17. Nf3 {[%clk 0:01:54]}  Qd5 {[%clk 0:02:29]} 18. Ng3 {[%clk 0:01:46]}  Bg4 {[%clk 0:02:24]} 19. Nxg5 {[%clk 0:01:28]}  Bxe5 {[%clk 0:02:09]} 20. N5e4 {[%clk 0:01:09]}  Bg7 {[%clk 0:02:03]} 21. f3 {[%clk 0:01:07]}  Be6 {[%clk 0:01:53]} 22. Nf2 {[%clk 0:01:07]}  Kh7 {[%clk 0:01:37]} 23. Re2 {[%clk 0:00:59]}  Rg8 {[%clk 0:01:29]} 24. Rae1 {[%clk 0:00:59]}  Bf6 {[%clk 0:01:29]} 25. Nfe4 {[%clk 0:00:53]}  Rg6 {[%clk 0:01:05]} 26. Nxf6+ {[%clk 0:00:52]}  exf6 {[%clk 0:01:06]} 27. Qf4 {[%clk 0:00:47]}  Rag8 {[%clk 0:01:03]} 28. Ne4 {[%clk 0:00:37]}  f5 {[%clk 0:00:57]} 29. Ng3 {[%clk 0:00:37]}  Qc5 {[%clk 0:00:52]} 30. Nh5 {[%clk 0:00:31]}  b5 {[%clk 0:00:40]} 31. Ng3 {[%clk 0:00:17]}  bxa4 {[%clk 0:00:39]} 32. bxa4 {[%clk 0:00:18]}  Rg5 {[%clk 0:00:32]} 33. Qe5 {[%clk 0:00:07]}  Qb4 {[%clk 0:00:18]} 34. Qf6 {[%clk 0:00:07]}  R5g6 {[%clk 0:00:12]} 35. Qe5 {[%clk 0:00:06]}  Qxa4 {[%clk 0:00:11]} 36. Nxf5 {[%clk 0:00:06]}  Rg5 {[%clk 0:00:11]} 37. Qxd4 {[%clk 0:00:05]}  Qb5 {[%clk 0:00:09]} 38. Ng3 {[%clk 0:00:05]}  R5g6 {[%clk 0:00:06]} 39. Re5 {[%clk 0:00:05]}  Qb7 {[%clk 0:00:03]} 40. Qc3 {[%clk 0:00:04]}  Qb6+ {[%clk 0:00:03]} 41. d4 {[%clk 0:00:03]}  a4 {[%clk 0:00:03]} 42. Kf2 {[%clk 0:00:03]}  a3 {[%clk 0:00:03]} 43. Qxa3 {[%clk 0:00:03]}  Qxd4+ {[%clk 0:00:03]} 44. Qe3 {[%clk 0:00:03]}  Qc4 {[%clk 0:00:03]} 45. Re2 {[%clk 0:00:04]}  c5 {[%clk 0:00:04]} 46. Re4 {[%clk 0:00:03]}  Qd5 {[%clk 0:00:03]} 47. Qd3 {[%clk 0:00:03]}  Qg5 {[%clk 0:00:03]} 48. Qe3 {[%clk 0:00:03]}  Qf6 {[%clk 0:00:03]} 49. c4 {[%clk 0:00:03]}  Qa1 {[%clk 0:00:03]} 50. Qf4 {[%clk 0:00:03]}  Qc3 {[%clk 0:00:02]} 51. Qe3 {[%clk 0:00:03]}  Qf6 {[%clk 0:00:02]} 52. Rf4 {[%clk 0:00:04]}  Qa1 {[%clk 0:00:02]} 53. Re4 {[%clk 0:00:04]}  R8g7 {[%clk 0:00:02]} 54. Re5 {[%clk 0:00:04]}  Qb1 {[%clk 0:00:02]} 55. Rxc5 {[%clk 0:00:05]}  Qa1 {[%clk 0:00:02]} 56. Re5 {[%clk 0:00:05]}  Bxc4 {[%clk 0:00:02]} 57. Rd2 {[%clk 0:00:06]}  Rxg3 {[%clk 0:00:02]} 58. Qe4+ {[%clk 0:00:05]}  R7g6 {[%clk 0:00:02]} 59. Qxc4 {[%clk 0:00:05]}  Rxg2+ {[%clk 0:00:02]} 60. Ke3 {[%clk 0:00:06]}  Qe1+ {[%clk 0:00:03]} 61. Re2 {[%clk 0:00:05]}  Qg1+ {[%clk 0:00:03]} 62. Kd2 {[%clk 0:00:05]}  Rxe2+ {[%clk 0:00:02]} 63. Qxe2 {[%clk 0:00:05]}  Rd6+ {[%clk 0:00:02]} 64. Kc2 {[%clk 0:00:04]}  Rc6+ {[%clk 0:00:02]} 65. Kd3 {[%clk 0:00:04]}  Rd6+ {[%clk 0:00:02]} 66. Kc2 {[%clk 0:00:04]}  Kg7 {[%clk 0:00:03]} 67. Re3 {[%clk 0:00:03]}  Qg6+ {[%clk 0:00:03]} 68. Rd3 {[%clk 0:00:03]}  Re6 {[%clk 0:00:03]} 69. Qd2 {[%clk 0:00:03]}  Qf6 {[%clk 0:00:03]} 70. Qc3 {[%clk 0:00:03]}  Rc6 {[%clk 0:00:03]} 0-1


[Site "https://www.chess.com"]

[Event "Titled Tuesday Blitz March 22 Late 2022"]
[White "Goryachkina, Aleksandra"]
[Black "Papasimakopoulos, Alexandros"]
[WhiteFideId "4147103"]
[BlackFideId "4244125"]
[WhiteElo "2426"]
[BlackElo "2340"]
[Result "0-1"]
[Round "10"]
[TimeControl "180+1"]
[Date "2022.03.22"]
[WhiteClock "0:00:06"]
[BlackClock "0:00:39"]

1. e4 {[%clk 0:02:59]}  e6 {[%clk 0:02:59]} 2. d4 {[%clk 0:02:59]}  d5 {[%clk 0:02:54]} 3. Nd2 {[%clk 0:02:59]}  Be7 {[%clk 0:02:54]} 4. Ngf3 {[%clk 0:02:56]}  Nf6 {[%clk 0:02:54]} 5. e5 {[%clk 0:02:51]}  Nfd7 {[%clk 0:02:54]} 6. Bd3 {[%clk 0:02:51]}  c5 {[%clk 0:02:54]} 7. c3 {[%clk 0:02:51]}  Nc6 {[%clk 0:02:54]} 8. O-O {[%clk 0:02:47]}  a5 {[%clk 0:02:54]} 9. Re1 {[%clk 0:02:44]}  cxd4 {[%clk 0:02:52]} 10. cxd4 {[%clk 0:02:43]}  g5 {[%clk 0:02:52]} 11. Nf1 {[%clk 0:02:21]}  g4 {[%clk 0:02:49]} 12. N3d2 {[%clk 0:02:21]}  h5 {[%clk 0:02:50]} 13. Bb5 {[%clk 0:01:49]}  Nxd4 {[%clk 0:02:49]} 14. Bxd7+ {[%clk 0:01:38]}  Bxd7 {[%clk 0:02:50]} 15. Nb3 {[%clk 0:01:38]}  Nxb3 {[%clk 0:02:33]} 16. axb3 {[%clk 0:01:37]}  Bc5 {[%clk 0:02:11]} 17. Be3 {[%clk 0:01:36]}  b6 {[%clk 0:02:04]} 18. Qd3 {[%clk 0:01:29]}  Bc6 {[%clk 0:01:57]} 19. Bd4 {[%clk 0:01:23]}  Qd7 {[%clk 0:01:48]} 20. Qe3 {[%clk 0:01:19]}  Bb5 {[%clk 0:01:32]} 21. Bxc5 {[%clk 0:01:12]}  bxc5 {[%clk 0:01:32]} 22. Qxc5 {[%clk 0:01:12]}  Bxf1 {[%clk 0:01:32]} 23. Rxf1 {[%clk 0:01:12]}  Qc8 {[%clk 0:01:20]} 24. Qb5+ {[%clk 0:00:57]}  Qd7 {[%clk 0:01:19]} 25. Qc5 {[%clk 0:00:46]}  Qc8 {[%clk 0:01:18]} 26. Rfc1 {[%clk 0:00:44]}  Qxc5 {[%clk 0:01:18]} 27. Rxc5 {[%clk 0:00:45]}  Kd7 {[%clk 0:01:16]} 28. Rcxa5 {[%clk 0:00:41]}  Rxa5 {[%clk 0:01:15]} 29. Rxa5 {[%clk 0:00:41]}  Rb8 {[%clk 0:01:15]} 30. Ra3 {[%clk 0:00:37]}  Kc6 {[%clk 0:01:08]} 31. Kf1 {[%clk 0:00:34]}  d4 {[%clk 0:01:08]} 32. Ke2 {[%clk 0:00:31]}  Kd5 {[%clk 0:01:08]} 33. Kd3 {[%clk 0:00:28]}  Kxe5 {[%clk 0:01:08]} 34. Ra5+ {[%clk 0:00:19]}  Kf4 {[%clk 0:01:06]} 35. Kc4 {[%clk 0:00:13]}  e5 {[%clk 0:01:02]} 36. b4 {[%clk 0:00:11]}  Rd8 {[%clk 0:00:47]} 37. b5 {[%clk 0:00:11]}  d3 {[%clk 0:00:41]} 38. Ra1 {[%clk 0:00:11]}  h4 {[%clk 0:00:41]} 39. b6 {[%clk 0:00:10]}  e4 {[%clk 0:00:41]} 40. Kc5 {[%clk 0:00:08]}  g3 {[%clk 0:00:41]} 41. hxg3+ {[%clk 0:00:06]}  hxg3 {[%clk 0:00:41]} 42. fxg3+ {[%clk 0:00:06]}  Kxg3 {[%clk 0:00:41]} 43. Re1 {[%clk 0:00:06]}  d2 {[%clk 0:00:39]} 0-1


[Site "https://www.chess.com"]

[Event "Titled Tuesday Blitz March 22 Late 2022"]
[White "Hambleton, Aman"]
[Black "Cappai, Davide"]
[WhiteFideId "2606577"]
[BlackFideId "813338"]
[WhiteElo "2552"]
[BlackElo "2295"]
[Result "1-0"]
[Round "10"]
[TimeControl "180+1"]
[Date "2022.03.22"]
[WhiteClock "0:00:12"]
[BlackClock "0:00:59"]

1. d4 {[%clk 0:02:55]}  c5 {[%clk 0:02:59]} 2. d5 {[%clk 0:02:55]}  e5 {[%clk 0:03:00]} 3. c4 {[%clk 0:02:54]}  d6 {[%clk 0:03:00]} 4. Nc3 {[%clk 0:02:54]}  g6 {[%clk 0:03:00]} 5. e4 {[%clk 0:02:54]}  Bg7 {[%clk 0:03:01]} 6. Bd3 {[%clk 0:02:55]}  Ne7 {[%clk 0:03:01]} 7. Nge2 {[%clk 0:02:55]}  O-O {[%clk 0:03:02]} 8. a3 {[%clk 0:02:54]}  a6 {[%clk 0:03:02]} 9. b4 {[%clk 0:02:54]}  Nd7 {[%clk 0:03:01]} 10. Be3 {[%clk 0:02:53]}  Qc7 {[%clk 0:03:01]} 11. f3 {[%clk 0:02:50]}  b6 {[%clk 0:03:01]} 12. Rb1 {[%clk 0:02:48]}  h6 {[%clk 0:02:59]} 13. Qd2 {[%clk 0:02:48]}  Kh7 {[%clk 0:02:59]} 14. g4 {[%clk 0:02:32]}  Nf6 {[%clk 0:02:48]} 15. Ng3 {[%clk 0:02:29]}  Bd7 {[%clk 0:02:44]} 16. h4 {[%clk 0:02:28]}  Nfg8 {[%clk 0:02:45]} 17. h5 {[%clk 0:02:25]}  g5 {[%clk 0:02:44]} 18. Kf2 {[%clk 0:02:16]}  Rfb8 {[%clk 0:02:44]} 19. Rhc1 {[%clk 0:02:13]}  Nf6 {[%clk 0:02:36]} 20. Kg2 {[%clk 0:02:10]}  Kg8 {[%clk 0:02:36]} 21. Be2 {[%clk 0:02:06]}  Be8 {[%clk 0:02:32]} 22. Rb2 {[%clk 0:02:01]}  Rb7 {[%clk 0:02:29]} 23. Rcb1 {[%clk 0:02:00]}  Rab8 {[%clk 0:02:30]} 24. Bf2 {[%clk 0:01:59]}  Nd7 {[%clk 0:02:18]} 25. Rb3 {[%clk 0:01:58]}  Nf6 {[%clk 0:01:50]} 26. Qb2 {[%clk 0:01:57]}  Bd7 {[%clk 0:01:49]} 27. bxc5 {[%clk 0:01:54]}  dxc5 {[%clk 0:01:49]} 28. a4 {[%clk 0:01:32]}  Ne8 {[%clk 0:01:36]} 29. a5 {[%clk 0:01:29]}  Nc8 {[%clk 0:01:37]} 30. Qa3 {[%clk 0:01:00]}  Bf8 {[%clk 0:01:32]} 31. axb6 {[%clk 0:00:58]}  Rxb6 {[%clk 0:01:32]} 32. Nd1 {[%clk 0:00:21]}  Rb4 {[%clk 0:01:30]} 33. Rxb4 {[%clk 0:00:15]}  cxb4 {[%clk 0:01:30]} 34. Qxa6 {[%clk 0:00:15]}  Ned6 {[%clk 0:01:19]} 35. c5 {[%clk 0:00:12]}  Nb5 {[%clk 0:01:05]} 36. c6 {[%clk 0:00:11]}  Be8 {[%clk 0:01:02]} 37. Bxb5 {[%clk 0:00:11]}  Rb6 {[%clk 0:01:02]} 38. Bxb6 {[%clk 0:00:11]}  Nxb6 {[%clk 0:01:02]} 39. Qb7 {[%clk 0:00:11]}  Bd6 {[%clk 0:01:02]} 40. Qxc7 {[%clk 0:00:11]}  Bxc7 {[%clk 0:01:02]} 41. Rxb4 {[%clk 0:00:11]}  Nc8 {[%clk 0:01:03]} 42. Nf5 {[%clk 0:00:11]}  Kf8 {[%clk 0:01:02]} 43. Ba6 {[%clk 0:00:11]}  Nd6 {[%clk 0:01:02]} 44. Nde3 {[%clk 0:00:11]}  f6 {[%clk 0:01:00]} 45. Nxd6 {[%clk 0:00:11]}  Bxd6 {[%clk 0:01:00]} 46. Rb7 {[%clk 0:00:12]}  Bc5 {[%clk 0:00:59]} 47. Nf5 {[%clk 0:00:12]} 1-0


[Site "https://www.chess.com"]

[Event "Titled Tuesday Blitz March 22 Late 2022"]
[White "Indjic, Aleksandar"]
[Black "Vasquez Schroeder, Rodrigo"]
[WhiteFideId "911925"]
[BlackFideId "3400042"]
[WhiteElo "2616"]
[BlackElo "2561"]
[Result "0-1"]
[Round "10"]
[TimeControl "180+1"]
[Date "2022.03.22"]
[WhiteClock "0:00:07"]
[BlackClock "0:00:32"]

1. d4 {[%clk 0:03:00]}  Nf6 {[%clk 0:02:58]} 2. c4 {[%clk 0:03:01]}  e6 {[%clk 0:02:58]} 3. Nc3 {[%clk 0:03:01]}  Bb4 {[%clk 0:02:58]} 4. Qc2 {[%clk 0:03:01]}  O-O {[%clk 0:02:58]} 5. Nf3 {[%clk 0:03:01]}  c5 {[%clk 0:02:56]} 6. dxc5 {[%clk 0:03:00]}  Na6 {[%clk 0:02:56]} 7. g3 {[%clk 0:03:00]}  Nxc5 {[%clk 0:02:55]} 8. Bg2 {[%clk 0:03:00]}  Nce4 {[%clk 0:02:55]} 9. O-O {[%clk 0:03:01]}  Bxc3 {[%clk 0:02:55]} 10. bxc3 {[%clk 0:03:01]}  Qc7 {[%clk 0:02:47]} 11. Ba3 {[%clk 0:02:16]}  d6 {[%clk 0:02:37]} 12. Nd2 {[%clk 0:02:15]}  Nc5 {[%clk 0:02:33]} 13. Nb3 {[%clk 0:02:12]}  Rb8 {[%clk 0:02:30]} 14. Rad1 {[%clk 0:02:03]}  b6 {[%clk 0:02:28]} 15. Nd4 {[%clk 0:02:03]}  Bd7 {[%clk 0:02:22]} 16. e4 {[%clk 0:01:48]}  Ba4 {[%clk 0:02:20]} 17. Nb3 {[%clk 0:01:46]}  Rfd8 {[%clk 0:02:06]} 18. f4 {[%clk 0:01:44]}  e5 {[%clk 0:02:04]} 19. Kh1 {[%clk 0:01:28]}  Ncxe4 {[%clk 0:01:56]} 20. Rde1 {[%clk 0:01:19]}  Nc5 {[%clk 0:01:46]} 21. Bxc5 {[%clk 0:01:06]}  bxc5 {[%clk 0:01:43]} 22. fxe5 {[%clk 0:01:06]}  dxe5 {[%clk 0:01:43]} 23. Qf5 {[%clk 0:01:06]}  Re8 {[%clk 0:01:35]} 24. g4 {[%clk 0:01:04]}  Bd7 {[%clk 0:01:32]} 25. Qg5 {[%clk 0:01:01]}  h6 {[%clk 0:01:29]} 26. Qh4 {[%clk 0:01:01]}  Bc6 {[%clk 0:01:23]} 27. g5 {[%clk 0:00:58]}  Bxg2+ {[%clk 0:01:21]} 28. Kxg2 {[%clk 0:00:58]}  Qc6+ {[%clk 0:01:21]} 29. Kg1 {[%clk 0:00:55]}  hxg5 {[%clk 0:01:20]} 30. Qxg5 {[%clk 0:00:55]}  Re6 {[%clk 0:01:17]} 31. Qg2 {[%clk 0:00:53]}  Qxg2+ {[%clk 0:01:12]} 32. Kxg2 {[%clk 0:00:54]}  Rc8 {[%clk 0:01:12]} 33. Re2 {[%clk 0:00:53]}  g6 {[%clk 0:01:09]} 34. Rd1 {[%clk 0:00:52]}  e4 {[%clk 0:01:07]} 35. Kf2 {[%clk 0:00:48]}  Kg7 {[%clk 0:01:06]} 36. h3 {[%clk 0:00:44]}  Re5 {[%clk 0:01:05]} 37. Re3 {[%clk 0:00:44]}  Rh8 {[%clk 0:01:05]} 38. Rd6 {[%clk 0:00:40]}  Rhh5 {[%clk 0:01:04]} 39. Rc6 {[%clk 0:00:37]}  Rhf5+ {[%clk 0:01:02]} 40. Ke2 {[%clk 0:00:35]}  Rg5 {[%clk 0:01:01]} 41. Ra6 {[%clk 0:00:30]}  Rg2+ {[%clk 0:00:59]} 42. Kd1 {[%clk 0:00:30]}  Rf5 {[%clk 0:00:53]} 43. Rxa7 {[%clk 0:00:30]}  Rf1+ {[%clk 0:00:52]} 44. Re1 {[%clk 0:00:30]}  Rff2 {[%clk 0:00:51]} 45. Nxc5 {[%clk 0:00:19]}  Rb2 {[%clk 0:00:45]} 46. Nb3 {[%clk 0:00:11]}  e3 {[%clk 0:00:33]} 47. Kc1 {[%clk 0:00:07]}  Rgc2+ {[%clk 0:00:32]} 0-1


[Site "https://www.chess.com"]

[Event "Titled Tuesday Blitz March 22 Late 2022"]
[White "Jacobson, Aaron"]
[Black "Fishbein, Alexander"]
[WhiteFideId "2089912"]
[BlackFideId "2000377"]
[WhiteElo "2265"]
[BlackElo "2442"]
[Result "0-1"]
[Round "10"]
[TimeControl "180+1"]
[Date "2022.03.22"]
[WhiteClock "0:00:07"]
[BlackClock "0:00:38"]

1. e4 {[%clk 0:02:53]}  c5 {[%clk 0:02:56]} 2. Nf3 {[%clk 0:02:52]}  d6 {[%clk 0:02:57]} 3. d4 {[%clk 0:02:53]}  cxd4 {[%clk 0:02:57]} 4. e5 {[%clk 0:02:53]}  dxe5 {[%clk 0:02:55]} 5. c3 {[%clk 0:02:54]}  Nc6 {[%clk 0:02:51]} 6. Bb5 {[%clk 0:02:54]}  Bd7 {[%clk 0:02:49]} 7. O-O {[%clk 0:02:54]}  e4 {[%clk 0:02:44]} 8. Nxd4 {[%clk 0:02:54]}  Nxd4 {[%clk 0:02:42]} 9. Bxd7+ {[%clk 0:02:55]}  Qxd7 {[%clk 0:02:42]} 10. cxd4 {[%clk 0:02:56]}  e6 {[%clk 0:02:40]} 11. Nc3 {[%clk 0:02:56]}  Nf6 {[%clk 0:02:39]} 12. Bg5 {[%clk 0:02:49]}  Be7 {[%clk 0:02:39]} 13. Qe2 {[%clk 0:02:49]}  O-O {[%clk 0:02:36]} 14. Rfd1 {[%clk 0:02:46]}  Nd5 {[%clk 0:02:30]} 15. Bxe7 {[%clk 0:02:39]}  Qxe7 {[%clk 0:02:29]} 16. Qxe4 {[%clk 0:02:36]}  Rfd8 {[%clk 0:02:29]} 17. Nxd5 {[%clk 0:02:08]}  Rxd5 {[%clk 0:02:28]} 18. Rd3 {[%clk 0:02:08]}  Rad8 {[%clk 0:02:26]} 19. Rad1 {[%clk 0:02:02]}  Qd7 {[%clk 0:02:26]} 20. h3 {[%clk 0:01:51]}  h6 {[%clk 0:02:25]} 21. a3 {[%clk 0:01:37]}  e5 {[%clk 0:02:22]} 22. R1d2 {[%clk 0:01:35]}  Rxd4 {[%clk 0:02:18]} 23. Rxd4 {[%clk 0:01:35]}  exd4 {[%clk 0:02:18]} 24. Rd3 {[%clk 0:01:33]}  b6 {[%clk 0:02:14]} 25. Qe5 {[%clk 0:01:26]}  a5 {[%clk 0:02:09]} 26. Qf4 {[%clk 0:01:17]}  Qd5 {[%clk 0:02:03]} 27. Qc7 {[%clk 0:01:11]}  Re8 {[%clk 0:01:57]} 28. Qc1 {[%clk 0:00:49]}  b5 {[%clk 0:01:50]} 29. Qd2 {[%clk 0:00:46]}  Re4 {[%clk 0:01:27]} 30. Qxa5 {[%clk 0:00:31]}  Re2 {[%clk 0:01:24]} 31. Qb4 {[%clk 0:00:17]}  Qe5 {[%clk 0:01:11]} 32. Rd1 {[%clk 0:00:10]}  d3 {[%clk 0:01:07]} 33. Qc3 {[%clk 0:00:06]}  Qf4 {[%clk 0:00:59]} 34. Rf1 {[%clk 0:00:04]}  Qe4 {[%clk 0:00:52]} 35. Qc8+ {[%clk 0:00:03]}  Kh7 {[%clk 0:00:52]} 36. Qc3 {[%clk 0:00:02]}  Rc2 {[%clk 0:00:51]} 37. Qb3 {[%clk 0:00:01]}  Qc4 {[%clk 0:00:43]} 38. Qxc4 {[%clk 0:00:01]}  bxc4 {[%clk 0:00:43]} 39. Rb1 {[%clk 0:00:02]}  d2 {[%clk 0:00:41]} 40. Rc1 {[%clk 0:00:02]}  Rxc1+ {[%clk 0:00:41]} 41. Kh2 {[%clk 0:00:03]}  d1=Q {[%clk 0:00:41]} 42. b4 {[%clk 0:00:03]}  cxb3 {[%clk 0:00:39]} 43. a4 {[%clk 0:00:04]}  b2 {[%clk 0:00:39]} 44. a5 {[%clk 0:00:05]}  b1=Q {[%clk 0:00:40]} 45. a6 {[%clk 0:00:06]}  Qa4 {[%clk 0:00:39]} 46. a7 {[%clk 0:00:06]}  Qxa7 {[%clk 0:00:39]} 47. h4 {[%clk 0:00:07]}  Qxf2 {[%clk 0:00:38]} 48. h5 {[%clk 0:00:07]}  Qh4# {[%clk 0:00:38]} 0-1


[Site "https://www.chess.com"]